fUSD/lending_fUSD_20240329
["ID","MTS","AMOUNT","RATE_DAILY","PERIOD"]
[320918984,1711708240737,-523.47543095,0.00049589,120]
[320918986,1711708240746,-517.45821717,0.00049589,120]
[320918988,1711708240756,-539.34260118,0.00049589,120]
[320918990,1711708240768,-523.42218693,0.00049589,120]
[320918992,1711708240778,-500.0,0.00049589,120]
[320918994,1711708240788,-500.0,0.00049589,120]
[320918996,1711708240797,-531.0553011,0.00049589,120]
[320918998,1711708240806,-566.59217213,0.00049589,120]
[320919000,1711708240816,-500.0,0.00049589,120]
[320919002,1711708240825,-500.0,0.00049589,120]
[320919004,1711708240834,-500.0,0.00049589,120]
[320919006,1711708240844,-500.0,0.00049589,120]
[320919008,1711708240853,-500.0,0.00049589,120]
[320919010,1711708240865,-475.16038587,0.00049589,120]
[320919012,1711708240874,-500.0,0.00049589,120]
[320919014,1711708240884,-500.0,0.00049589,120]
[320919016,1711708240894,-500.0,0.00049589,120]
[320919019,1711708240903,-527.3516396,0.00049589,120]
[320919021,1711708240913,-533.07260293,0.00049589,120]
[320919023,1711708240923,-500.0,0.00049589,120]
[320919025,1711708240932,-277.29390574,0.00049589,120]
[320919026,1711708240943,-500.0,0.00049589,120]
[320919028,1711708240952,-641.45935024,0.00049589,120]
[320919030,1711708240962,-500.0,0.00049589,120]
[320919032,1711708240975,-500.0,0.00049589,120]
[320919034,1711708240986,-500.0,0.00049589,120]
[320919036,1711708240995,-500.0,0.00049589,120]
[320919038,1711708241007,-500.0,0.00049589,120]
[320919041,1711708241018,-500.0,0.00049589,120]
[320919042,1711708241027,-500.0,0.00049589,120]
[320919045,1711708241037,-500.0,0.00049589,120]
[320919046,1711708241049,-524.84642712,0.00049589,120]
[320919049,1711708241063,-500.0,0.00049589,120]
[320919051,1711708241072,-500.0,0.00049589,120]
[320919053,1711708241081,-500.0,0.00049589,120]
[320919055,1711708241090,-500.0,0.00049589,120]
[320919057,1711708241100,-620.74,0.00049589,2]
[320919059,1711708241110,-500.0,0.00049589,120]
[320919061,1711708241119,-639.90277799,0.00049589,120]
[320919063,1711708241128,-484.13066324,0.00049589,120]
[320919065,1711708241138,-500.0,0.00049589,120]
[320919067,1711708241148,-352.12821277,0.00049589,120]
[320919069,1711708241157,-500.0,0.00049589,120]
[320919071,1711708241166,-500.0,0.00049589,120]
[320919073,1711708241176,-413.00969108,0.00049589,120]
[320919075,1711708241186,-500.0,0.00049589,120]
[320919077,1711708241196,-500.0,0.00049589,120]
[320919079,1711708241205,-500.0,0.00049589,120]
[320919081,1711708241214,-500.0,0.00049589,120]
[320919083,1711708241223,-500.0,0.00049589,120]
[320919085,1711708241233,-459.30545034,0.00049589,120]
[320919087,1711708241243,-530.48562403,0.00049589,120]
[320919089,1711708241253,-500.0,0.00049589,120]
[320919091,1711708241263,-373.427979,0.00049589,120]
[320919093,1711708241273,-355.79437621,0.00049589,120]
[320919095,1711708241282,-557.92113066,0.00049589,120]
[320919097,1711708241292,-500.0,0.00049589,120]
[320919099,1711708241301,-500.0,0.00049589,120]
[320919101,1711708241310,-538.99648181,0.00049589,120]
[320919103,1711708241320,-500.0,0.00049589,120]
[320919105,1711708241329,-271.24623119,0.00049589,120]
[320919107,1711708241340,-271.45724087,0.00049589,120]
[320919109,1711708241350,-529.504814,0.00049589,120]
[320919111,1711708241360,-500.0,0.00049589,120]
[320919113,1711708241369,-500.0,0.00049589,120]
[320919115,1711708241379,-500.0,0.00049589,120]
[320919117,1711708241388,-500.0,0.00049589,120]
[320919119,1711708241398,-500.0,0.00049589,2]
[320919121,1711708241408,-227.02857075,0.00049589,120]
[320919123,1711708241417,-500.0,0.00049589,120]
[320919125,1711708241427,-500.0,0.00049589,120]
[320919127,1711708241436,-500.0,0.00049589,120]
[320919129,1711708241446,-1282.35,0.00049589,120]
[320919131,1711708241455,-500.0,0.00049589,120]
[320919133,1711708241465,-595.07635183,0.00049589,120]
[320919135,1711708241475,-500.0,0.00049589,120]
[320919137,1711708241484,-563.36,0.00049589,120]
[320919139,1711708241494,-500.0,0.00049589,120]
[320919141,1711708241503,-520.22,0.00049589,120]
[320919143,1711708241513,-587.15498886,0.00049589,120]
[320919146,1711708241522,-500.0,0.00049589,120]
[320919148,1711708241531,-500.0,0.00049589,120]
[320919150,1711708241540,-500.0,0.00049589,120]
[320919151,1711708241550,-500.0,0.00049589,120]
[320919153,1711708241560,-500.0,0.00049589,120]
[320919156,1711708241572,-500.0,0.00049589,120]
[320919158,1711708241581,-500.0,0.00049589,120]
[320919160,1711708241590,-500.0,0.00049589,120]
[320919161,1711708241599,-500.0,0.00049589,120]
[320919164,1711708241609,-500.0,0.00049589,120]
[320919166,1711708241618,-500.0,0.00049589,120]
[320919168,1711708241628,-500.0,0.00049589,120]
[320919170,1711708241637,-500.0,0.00049589,120]
[320919172,1711708241646,-500.0,0.00049589,120]
[320919174,1711708241655,-500.0,0.00049589,120]
[320919175,1711708241664,-500.0,0.00049589,120]
[320919177,1711708241674,-593.01,0.00049589,120]
[320919179,1711708241684,-500.0,0.00049589,120]
[320919182,1711708241693,-500.0,0.00049589,120]
[320919184,1711708241703,-500.0,0.00049589,120]
[320919186,1711708241712,-500.0,0.00049589,120]
[320919187,1711708241721,-500.0,0.00049589,120]
[320919189,1711708241731,-500.0,0.00049589,120]
[320919191,1711708241740,-500.0,0.00049589,120]
[320919194,1711708241749,-535.8514673,0.00049589,120]
[320919196,1711708241759,-500.0,0.00049589,120]
[320919198,1711708241768,-500.0,0.00049589,120]
[320919200,1711708241777,-500.0,0.00049589,120]
[320919202,1711708241786,-500.0,0.00049589,120]
[320919204,1711708241795,-500.0,0.00049589,120]
[320919206,1711708241805,-500.0,0.00049589,120]
[320919208,1711708241814,-500.0,0.00049589,120]
[320919210,1711708241823,-500.0,0.00049589,120]
[320919212,1711708241833,-500.0,0.00049589,120]
[320919213,1711708241842,-500.0,0.00049589,120]
[320919215,1711708241851,-558.61935463,0.00049589,120]
[320919218,1711708241862,-500.0,0.00049589,120]
[320919219,1711708241871,-620.96,0.00049589,120]
[320919222,1711708241880,-500.0,0.00049589,120]
[320919225,1711708241904,-500.0,0.00049589,120]
[320919227,1711708241913,-500.0,0.00049589,120]
[320919229,1711708241923,-500.0,0.00049589,120]
[320919231,1711708241933,-500.0,0.00049589,120]
[320919233,1711708241942,-500.0,0.00049589,120]
[320919235,1711708241953,-500.0,0.00049589,120]
[320919237,1711708241963,-500.0,0.00049589,120]
[320919239,1711708241972,-500.0,0.00049589,120]
[320919241,1711708241986,-500.0,0.00049589,120]
[320919243,1711708241996,-509.52665167,0.00049589,120]
[320919245,1711708242005,-500.0,0.00049589,120]
[320919247,1711708242015,-500.0,0.00049589,120]
[320919250,1711708242025,-3099.48,0.00049589,120]
[320919252,1711708242035,-500.0,0.00049589,30]
[320919254,1711708242044,-500.0,0.00049589,120]
[320919256,1711708242054,-963.78,0.00049589,120]
[320919258,1711708242063,-500.0,0.00049589,120]
[320919260,1711708242073,-500.0,0.00049589,120]
[320919262,1711708242083,-500.0,0.00049589,120]
[320919264,1711708242093,-500.0,0.00049589,120]
[320919266,1711708242103,-502.67086317,0.00049589,120]
[320919268,1711708242113,-500.0,0.00049589,120]
[320919270,1711708242122,-500.0,0.00049589,120]
[320919272,1711708242131,-500.0,0.00049589,120]
[320919274,1711708242141,-500.0,0.00049589,120]
[320919276,1711708242151,-500.0,0.00049589,120]
[320919278,1711708242161,-519.2,0.00049589,120]
[320919280,1711708242170,-500.0,0.00049589,120]
[320919282,1711708242179,-500.0,0.00049589,120]
[320919284,1711708242189,-501.62,0.00049589,120]
[320919286,1711708242198,-500.0,0.00049589,120]
[320919288,1711708242208,-500.0,0.00049589,120]
[320919290,1711708242217,-557.58,0.00049589,120]
[320919292,1711708242228,-500.0,0.00049589,120]
[320919294,1711708242237,-500.0,0.00049589,120]
[320919296,1711708242246,-307.03627279,0.00049589,120]
[320919298,1711708242256,-500.0,0.00049589,120]
[320919300,1711708242265,-457.14262202,0.00049589,120]
[320919302,1711708242274,-500.0,0.00049589,120]
[320919304,1711708242283,-500.0,0.00049589,120]
[320919307,1711708242293,-709.66,0.00049589,120]
[320919310,1711708242302,-567.15,0.00049589,120]
[320919313,1711708242311,-500.0,0.00049589,120]
[320919315,1711708242321,-500.0,0.00049589,120]
[320919319,1711708242331,-500.0,0.00049589,120]
[320919321,1711708242341,-500.0,0.00049589,120]
[320919324,1711708242350,-208.4,0.00049589,120]
[320919327,1711708242360,-500.0,0.00049589,120]
[320919330,1711708242370,-500.0,0.00049589,120]
[320919332,1711708242379,-512.04275182,0.00049589,120]
[320919333,1711708242389,-500.0,0.00049589,120]
[320919334,1711708242398,-500.0,0.00049589,120]
[320919335,1711708242407,-500.0,0.00049589,120]
[320919336,1711708242417,-500.0,0.00049589,120]
[320919338,1711708242426,-500.0,0.00049589,120]
[320919340,1711708242436,-500.0,0.00049589,120]
[320919341,1711708242445,-500.0,0.00049589,120]
[320919343,1711708242454,-500.0,0.00049589,120]
[320919345,1711708242464,-500.0,0.00049589,120]
[320919346,1711708242474,-500.0,0.00049589,120]
[320919347,1711708242483,-500.0,0.00049589,120]
[320919348,1711708242493,-500.0,0.00049589,120]
[320919349,1711708242502,-500.0,0.00049589,120]
[320919350,1711708242512,-578.33,0.00049589,120]
[320919351,1711708242521,-580.38,0.00049589,120]
[320919352,1711708242531,-466.7142713,0.00049589,120]
[320919353,1711708242541,-534.49885586,0.00049589,120]
[320919354,1711708242550,-500.0,0.00049589,120]
[320919355,1711708242559,-464.70657598,0.00049589,120]
[320919356,1711708242569,-629.0,0.00049589,120]
[320919357,1711708242579,-500.0,0.00049589,120]
[320919358,1711708242588,-500.0,0.00049589,120]
[320919359,1711708242597,-500.0,0.00049589,120]
[320919360,1711708242606,-526.06910154,0.00049589,120]
[320919361,1711708242616,-522.86156358,0.00049589,120]
[320919362,1711708242625,-500.0,0.00049589,120]
[320919363,1711708242635,-500.0,0.00049589,120]
[320919364,1711708242644,-561.70105911,0.00049589,120]
[320919365,1711708242654,-500.0,0.00049589,120]
[320919366,1711708242663,-229.33486937,0.00049589,120]
[320919367,1711708242702,-270.66513063,0.00049589,120]
[320919368,1711708242711,-229.33486937,0.00049589,120]
[320919369,1711708242723,-270.66513063,0.00049589,120]
[320919370,1711708242733,-500.0,0.00049589,120]
[320919371,1711708242742,-373.96223376,0.00049589,120]
[320919372,1711708242759,-126.03776624,0.00049589,120]
[320919373,1711708242768,-611.32,0.00049589,120]
[320919374,1711708242777,-297.37787931,0.00049589,120]
[320919375,1711708242812,-202.62212069,0.00049589,120]
[320919376,1711708242822,-147.49083657,0.00049589,120]
[320919379,1711708243925,-500.0,0.00049315,120]
[320919380,1711708243934,-979.94,0.00049315,120]
[320919381,1711708243945,-49.21689441,0.00049589,120]
[320919382,1711708243959,-303.29226902,0.00049589,120]
[320919383,1711708243971,-500.0,0.00049589,120]
[320919384,1711708243984,-500.0,0.00049589,120]
[320919385,1711708243994,-500.0,0.00049589,120]
[320919386,1711708244004,-154.71218854,0.00049589,120]
[320919387,1711708244014,-500.0,0.00049589,120]
[320919388,1711708244024,-500.0,0.00049589,120]
[320919389,1711708244033,-351.41726611,0.00049589,120]
[320919390,1711708244047,-148.58273389,0.00049589,120]
[320919391,1711708244058,-500.0,0.00049589,7]
[320919392,1711708244068,-500.0,0.00049589,120]
[320919393,1711708244078,-500.0,0.00049589,120]
[320919394,1711708244088,-1696.50761317,0.00049589,120]
[320919395,1711708244110,-1054.15238683,0.00049589,120]
[320919396,1711708244119,-538.15378534,0.00049589,120]
[320919397,1711708244130,-1801.63,0.00049589,120]
[320919398,1711708244140,-3114.25,0.00049589,120]
[320919399,1711708244150,-500.0,0.00049589,120]
[320919400,1711708244159,-500.0,0.00049589,120]
[320919401,1711708244169,-500.0,0.00049589,120]
[320919402,1711708244178,-500.0,0.00049589,120]
[320919403,1711708244188,-1502.82,0.00049589,120]
[320919404,1711708244197,-500.0,0.00049589,120]
[320919405,1711708244208,-499.9887372,0.00049589,120]
[320919406,1711708244661,-500.0,0.00049315,120]
[320919407,1711708244671,-500.0,0.00049315,120]
[320919408,1711708244681,-207.97893084,0.00049579,2]
[320919409,1711708244692,-287.1412628,0.00049589,120]
[320919410,1711708244702,-19.30901909,0.00049589,120]
[320919411,1711708244714,-832.71999985,0.00049589,120]
[320919412,1711708244726,-462.81098106,0.00049589,120]
[320919413,1711708244737,-234.77375746,0.00049589,120]
[320919414,1711708244786,-265.22624254,0.00049589,120]
[320919415,1711708244796,-538.6006859,0.00049589,120]
[320919416,1711708244806,-1347.77,0.00049589,120]
[320919417,1711708244815,-500.0,0.00049589,120]
[320919418,1711708244825,-7989.96,0.00049589,120]
[320919419,1711708244835,-723.96,0.00049589,120]
[320919420,1711708244845,-500.0,0.00049589,120]
[320919421,1711708244854,-1801.48,0.00049589,120]
[320919422,1711708244866,-500.0,0.00049589,120]
[320919423,1711708244876,-500.0,0.00049589,120]
[320919424,1711708244886,-500.0,0.00049589,120]
[320919425,1711708244896,-17663.5,0.00049589,120]
[320919426,1711708244906,-500.0,0.00049589,120]
[320919427,1711708244915,-500.0,0.00049589,120]
[320919428,1711708244925,-500.0,0.00049589,120]
[320919429,1711708244935,-500.0,0.00049589,120]
[320919430,1711708244945,-1246.29,0.00049589,120]
[320919431,1711708244955,-2214.11,0.00049589,120]
[320919432,1711708244967,-500.0,0.00049589,120]
[320919433,1711708244980,-500.0,0.00049589,120]
[320919434,1711708244990,-500.0,0.00049589,120]
[320919435,1711708245000,-1024.96,0.00049589,120]
[320919436,1711708245011,-861.33,0.00049589,120]
[320919437,1711708245021,-564.44444376,0.00049589,120]
[320919438,1711708245030,-356.78497261,0.00049589,120]
[320919439,1711708245040,-500.0,0.00049589,120]
[320919440,1711708245051,-500.0,0.00049589,120]
[320919441,1711708245063,-10000.0,0.00049589,2]
[320919442,1711708245073,-500.0,0.00049589,120]
[320919443,1711708245084,-511.66,0.00049589,120]
[320919444,1711708245094,-500.0,0.00049589,120]
[320919445,1711708245104,-500.0,0.00049589,120]
[320919446,1711708245115,-500.0,0.00049589,120]
[320919447,1711708245126,-456.20795188,0.00049589,120]
[320919448,1711708245136,-500.0,0.00049589,120]
[320919449,1711708245146,-1293.54,0.00049589,120]
[320919450,1711708245156,-1121.22,0.00049589,120]
[320919451,1711708245167,-564.46,0.00049589,120]
[320919452,1711708245177,-716.78,0.00049589,120]
[320919453,1711708245187,-2197.5,0.00049589,120]
[320919454,1711708245198,-500.0,0.00049589,120]
[320919455,1711708245208,-669.78,0.00049589,120]
[320919456,1711708245218,-500.0,0.00049589,120]
[320919457,1711708245228,-6349.4,0.00049589,120]
[320919458,1711708245239,-961.81,0.00049589,120]
[320919459,1711708245249,-500.0,0.00049589,120]
[320919460,1711708245259,-3558.64,0.00049589,120]
[320919462,1711708245269,-1314.94,0.00049589,120]
[320919463,1711708245280,-500.0,0.00049589,120]
[320919464,1711708245290,-500.0,0.00049589,120]
[320919465,1711708245299,-845.66,0.00049589,120]
[320919466,1711708245309,-772.01,0.00049589,120]
[320919467,1711708245319,-679.66,0.00049589,120]
[320919468,1711708245330,-707.53,0.00049589,120]
[320919469,1711708245339,-500.0,0.00049589,60]
[320919470,1711708245350,-2163.69,0.00049589,120]
[320919471,1711708245359,-579.62,0.00049589,120]
[320919472,1711708245371,-834.55,0.00049589,120]
[320919473,1711708245381,-604.68,0.00049589,120]
[320919475,1711708245390,-590.04,0.00049589,120]
[320919477,1711708245400,-1757.23,0.00049589,120]
[320919479,1711708245410,-500.0,0.00049589,120]
[320919481,1711708245419,-988.96,0.00049589,120]
[320919483,1711708245429,-637.73,0.00049589,120]
[320919485,1711708245439,-936.13,0.00049589,120]
[320919487,1711708245449,-500.0,0.00049589,120]
[320919489,1711708245459,-511.72,0.00049589,120]
[320919491,1711708245469,-521.87161621,0.00049589,120]
[320919493,1711708245479,-592.45,0.00049589,120]
[320919496,1711708245490,-954.88,0.00049589,120]
[320919498,1711708245499,-949.42,0.00049589,120]
[320919500,1711708245509,-1582.85,0.00049589,120]
[320919502,1711708245520,-500.0,0.00049589,120]
[320919504,1711708245530,-1219.21,0.00049589,120]
[320919506,1711708245540,-2893.84,0.00049589,120]
[320919507,1711708245550,-500.0,0.00049589,120]
[320919508,1711708245559,-547.52636207,0.00049589,120]
[320919509,1711708245569,-500.0,0.00049589,120]
[320919510,1711708245579,-1002.31,0.00049589,120]
[320919511,1711708245590,-1030.05,0.00049589,120]
[320919512,1711708245599,-2922.94,0.00049589,120]
[320919513,1711708245609,-500.0,0.00049589,120]
[320919514,1711708245620,-500.0,0.00049589,120]
[320919515,1711708245630,-894.69,0.00049589,120]
[320919516,1711708245639,-1659.67,0.00049589,120]
[320919517,1711708245650,-500.0,0.00049589,120]
[320919518,1711708245663,-1011.07,0.00049589,120]
[320919519,1711708245674,-1528.78,0.00049589,120]
[320919520,1711708245685,-1385.27,0.00049589,120]
[320919521,1711708245695,-1114.72,0.00049589,120]
[320919522,1711708245705,-923.79,0.00049589,120]
[320919523,1711708245715,-500.0,0.00049589,120]
[320919524,1711708245725,-3835.95,0.00049589,120]
[320919525,1711708245735,-500.0,0.00049589,120]
[320919526,1711708245746,-12321.7,0.00049589,120]
[320919527,1711708245756,-500.0,0.00049589,120]
[320919528,1711708245766,-1260.9,0.00049589,120]
[320919529,1711708245777,-536.97412724,0.00049589,120]
[320919530,1711708245787,-2921.0,0.00049589,120]
[320919531,1711708245798,-439.93927463,0.00049589,120]
[320919532,1711708245809,-500.0,0.00049589,120]
[320919533,1711708245820,-774.37,0.00049589,120]
[320919534,1711708245830,-857.5,0.00049589,120]
[320919535,1711708245840,-500.0,0.00049589,120]
[320919536,1711708245850,-824.0,0.00049589,120]
[320919537,1711708245861,-471.99296241,0.00049589,120]
[320919538,1711708245874,-500.0,0.00049589,120]
[320919539,1711708245884,-1215.28,0.00049589,120]
[320919540,1711708245894,-3786.28,0.00049589,120]
[320919541,1711708245905,-500.0,0.00049589,120]
[320919542,1711708245915,-500.0,0.00049589,120]
[320919543,1711708245925,-3298.59,0.00049589,120]
[320919544,1711708245939,-500.0,0.00049589,120]
[320919545,1711708245949,-1068.05,0.00049589,120]
[320919546,1711708245960,-500.0,0.00049589,120]
[320919547,1711708245970,-1691.34,0.00049589,120]
[320919550,1711708245985,-500.0,0.00049589,120]
[320919552,1711708245996,-500.0,0.00049589,120]
[320919554,1711708246005,-568.5763617,0.00049589,120]
[320919555,1711708246016,-1985.8,0.00049589,120]
[320919557,1711708246027,-628.23,0.00049589,120]
[320919559,1711708246037,-509.8557865,0.00049589,120]
[320919561,1711708246047,-500.0,0.00049589,120]
[320919562,1711708246058,-1104.5,0.00049589,120]
[320919563,1711708246067,-1329.16,0.00049589,120]
[320919564,1711708246077,-1589.12,0.00049589,120]
[320919565,1711708246087,-839.36,0.00049589,120]
[320919566,1711708246098,-1302.94,0.00049589,21]
[320919567,1711708246108,-500.0,0.00049589,120]
[320919568,1711708246119,-500.0,0.00049589,120]
[320919569,1711708246129,-3675.34,0.00049589,120]
[320919570,1711708246139,-500.0,0.00049589,120]
[320919571,1711708246149,-1214.03,0.00049589,120]
[320919572,1711708246159,-500.0,0.00049589,120]
[320919573,1711708246169,-535.34496696,0.00049589,120]
[320919574,1711708246179,-533.04013971,0.00049589,120]
[320919575,1711708246189,-944.06,0.00049589,120]
[320919576,1711708246200,-649.0,0.00049589,120]
[320919577,1711708246214,-1996.6,0.00049589,120]
[320919578,1711708246224,-500.0,0.00049589,120]
[320919579,1711708246234,-764.36,0.00049589,120]
[320919580,1711708246244,-1023.11,0.00049589,120]
[320919581,1711708246255,-500.0,0.00049589,120]
[320919582,1711708246267,-520.18,0.00049589,120]
[320919583,1711708246281,-721.06,0.00049589,120]
[320919584,1711708246292,-736.29,0.00049589,120]
[320919585,1711708246302,-500.0,0.00049589,120]
[320919586,1711708246312,-1686.58,0.00049589,120]
[320919587,1711708246322,-549.29,0.00049589,120]
[320919588,1711708246332,-565.81785928,0.00049589,120]
[320919589,1711708246341,-516.86926294,0.00049589,120]
[320919590,1711708246351,-534.70978319,0.00049589,120]
[320919591,1711708246362,-326.0145541,0.00049589,120]
[320919592,1711708246374,-1025.87,0.00049589,120]
[320919593,1711708246384,-500.0,0.00049589,120]
[320919594,1711708246395,-883.71,0.00049589,120]
[320919595,1711708246697,-500.0,0.00049589,120]
[320919596,1711708246716,-500.0,0.00049589,120]
[320919597,1711708246726,-271.26669273,0.00049589,120]
[320919598,1711708246736,-1005.77,0.00049589,120]
[320919599,1711708246745,-786.57,0.00049589,120]
[320919600,1711708246756,-565.56303336,0.00049589,120]
[320919601,1711708246765,-870.55,0.00049589,120]
[320919602,1711708246775,-500.0,0.00049589,120]
[320919603,1711708246784,-1566.64,0.00049589,120]
[320919604,1711708246794,-805.57,0.00049589,120]
[320919605,1711708246803,-500.0,0.00049589,120]
[320919606,1711708246812,-1197.01,0.00049589,120]
[320919607,1711708246822,-500.0,0.00049589,120]
[320919608,1711708246832,-500.0,0.00049589,120]
[320919609,1711708246842,-500.0,0.00049589,120]
[320919610,1711708246851,-500.0,0.00049589,120]
[320919611,1711708246861,-500.0,0.00049589,120]
[320919612,1711708246872,-500.0,0.00049589,120]
[320919613,1711708246882,-2434.7,0.00049589,120]
[320919614,1711708246892,-974.18,0.00049589,120]
[320919615,1711708246901,-500.0,0.00049589,120]
[320919616,1711708246910,-500.0,0.00049589,120]
[320919617,1711708246921,-636.89,0.00049589,120]
[320919618,1711708246947,-1418.19,0.00049589,120]
[320919619,1711708246957,-500.0,0.00049589,120]
[320919620,1711708246968,-933.57,0.00049589,120]
[320919621,1711708246982,-500.0,0.00049589,120]
[320919622,1711708246992,-500.0,0.00049589,120]
[320919623,1711708247002,-539.55,0.00049589,120]
[320919624,1711708247013,-500.0,0.00049589,120]
[320919625,1711708247023,-500.0,0.00049589,120]
[320919626,1711708247033,-1301.96,0.00049589,120]
[320919627,1711708247044,-500.0,0.00049589,120]
[320919628,1711708247056,-500.0,0.00049589,120]
[320919629,1711708247066,-979.94,0.00049589,120]
[320919630,1711708247076,-500.0,0.00049589,120]
[320919631,1711708247086,-500.0,0.00049589,120]
[320919632,1711708247096,-150.0,0.00049675,30]
[320919633,1711708247107,-500.0,0.00049694,90]
[320919634,1711708247118,-2000.0,0.000498,18]
[320919635,1711708247128,-12086.24334004,0.00049861,30]
[320919636,1711708247138,-4212.26054406,0.00049862,4]
[320919637,1711708247147,-239536.1421615,0.00049863,36]
[320919638,1711708247158,-224.93787781,0.00049863,120]
[320919639,1711708247167,-477.04765737,0.00049863,120]
[320919640,1711708247177,-544.71591593,0.00049863,120]
[320919641,1711708247187,-606.95751406,0.00049863,120]
[320919642,1711708247197,-605.78,0.00049863,120]
[320919643,1711708247207,-527.23315346,0.00049863,120]
[320919644,1711708247218,-541.98869138,0.00049863,120]
[320919645,1711708247227,-500.0,0.00049863,120]
[320919646,1711708247238,-587.508535,0.00049863,120]
[320919647,1711708247249,-547.96703231,0.00049863,120]
[320919648,1711708247259,-500.0,0.00049863,120]
[320919649,1711708247269,-159.04133055,0.00049863,120]
[320919650,1711708247279,-293.74882784,0.00049863,120]
[320919651,1711708247289,-500.0,0.00049863,120]
[320919652,1711708247299,-311.47690453,0.00049863,120]
[320919653,1711708247309,-500.0,0.00049863,120]
[320919654,1711708247319,-500.0,0.00049863,120]
[320919655,1711708247329,-500.0,0.00049863,120]
[320919656,1711708247339,-500.0,0.00049863,120]
[320919657,1711708247348,-364.29588622,0.00049863,120]
[320919658,1711708247358,-500.0,0.00049863,120]
[320919659,1711708247369,-296.67222256,0.00049863,120]
[320919660,1711708247379,-535.5,0.00049863,120]
[320919661,1711708247389,-500.0,0.00049863,120]
[320919662,1711708247399,-500.0,0.00049863,120]
[320919663,1711708247409,-486.23323418,0.00049863,120]
[320919664,1711708247419,-500.0,0.00049863,120]
[320919665,1711708247430,-464.37718227,0.00049863,120]
[320919666,1711708247440,-539.6182226,0.00049863,120]
[320919667,1711708247450,-620.74,0.00049863,2]
[320919668,1711708247460,-500.0,0.00049863,120]
[320919669,1711708247470,-500.0,0.00049863,120]
[320919670,1711708247480,-397.92362321,0.00049863,120]
[320919671,1711708247489,-500.0,0.00049863,120]
[320919672,1711708247499,-500.0,0.00049863,120]
[320919673,1711708247509,-500.0,0.00049863,120]
[320919674,1711708247519,-500.0,0.00049863,120]
[320919675,1711708247529,-500.0,0.00049863,120]
[320919676,1711708247539,-500.0,0.00049863,120]
[320919677,1711708247548,-527.12,0.00049863,120]
[320919678,1711708247558,-194.8882491,0.00049863,120]
[320919679,1711708247567,-500.0,0.00049863,120]
[320919680,1711708247577,-246.03852373,0.00049863,120]
[320919681,1711708247586,-500.0,0.00049863,120]
[320919682,1711708247596,-500.0,0.00049863,120]
[320919683,1711708247605,-577.94442905,0.00049863,120]
[320919684,1711708247615,-511.10673897,0.00049863,120]
[320919685,1711708247627,-500.0,0.00049863,2]
[320919686,1711708247638,-500.0,0.00049863,120]
[320919687,1711708247647,-186.11648316,0.00049863,120]
[320919688,1711708247656,-500.0,0.00049863,120]
[320919689,1711708247666,-1282.35,0.00049863,120]
[320919690,1711708247676,-500.0,0.00049863,120]
[320919691,1711708247685,-500.0,0.00049863,120]
[320919692,1711708247695,-520.22,0.00049863,120]
[320919693,1711708247704,-500.0,0.00049863,120]
[320919694,1711708247714,-500.0,0.00049863,120]